[Event "*** Titled Tuesday Blitz"]
[Site "Chess.com"]
[Date "2021.02.16"]
[Round "5"]
[White "Pogosian_Manvel"]
[Black "rozabaku"]
[Result "1-0"]
[WhiteElo "2408"]
[BlackElo "2213"]
[TimeControl "180+1"]
[EndTime "10:58:39 PST"]
[Termination "Pogosian_Manvel won by resignation"]

1. d4 {[%clk 0:02:53.7]} 1... Nf6 {[%clk 0:02:58.8]} 2. c4 {[%clk 0:02:46.9]}
2... g6 {[%clk 0:02:58.6]} 3. Nf3 {[%clk 0:02:46.6]} 3... Bg7 {[%clk 0:02:57.9]}
4. g3 {[%clk 0:02:46.9]} 4... d5 {[%clk 0:02:56.8]} 5. cxd5 {[%clk 0:02:45]}
5... Nxd5 {[%clk 0:02:55.6]} 6. Bg2 {[%clk 0:02:45.2]} 6... O-O {[%clk
0:02:55.3]} 7. O-O {[%clk 0:02:45.7]} 7... c6 {[%clk 0:02:53.3]} 8. e4 {[%clk
0:02:44.9]} 8... Nb6 {[%clk 0:02:53]} 9. h3 {[%clk 0:02:45.5]} 9... N8d7 {[%clk
0:02:38.6]} 10. Nc3 {[%clk 0:02:43.5]} 10... Nf6 {[%clk 0:02:37]} 11. Bf4 {[%clk
0:02:40.5]} 11... h6 {[%clk 0:02:36.5]} 12. b3 {[%clk 0:02:38.7]} 12... a5
{[%clk 0:02:34.7]} 13. Qe2 {[%clk 0:02:38.8]} 13... a4 {[%clk 0:02:33.7]} 14.
Qe3 {[%clk 0:02:30.7]} 14... Kh7 {[%clk 0:02:29]} 15. Rfd1 {[%clk 0:02:26.1]}
15... axb3 {[%clk 0:02:16.3]} 16. axb3 {[%clk 0:02:27]} 16... Rxa1 {[%clk
0:02:10.6]} 17. Rxa1 {[%clk 0:01:53.5]} 17... Be6 {[%clk 0:02:09.7]} 18. Rb1
{[%clk 0:01:31.3]} 18... Nh5 {[%clk 0:02:04.1]} 19. Be5 {[%clk 0:01:12.4]} 19...
f6 {[%clk 0:02:01.5]} 20. d5 {[%clk 0:01:12.7]} 20... cxd5 {[%clk 0:01:54]} 21.
Bd4 {[%clk 0:01:11.9]} 21... Nc8 {[%clk 0:01:44.2]} 22. exd5 {[%clk 0:01:11.5]}
22... Bxd5 {[%clk 0:01:26.3]} 23. Nxd5 {[%clk 0:00:56.5]} 23... Qxd5 {[%clk
0:01:27.2]} 24. g4 {[%clk 0:00:57.1]} 24... Nf4 {[%clk 0:01:15.2]} 25. Qxf4
{[%clk 0:00:54.3]} 25... e5 {[%clk 0:01:15.1]} 26. Bxe5 {[%clk 0:00:52]} 26...
fxe5 {[%clk 0:01:14]} 27. Qxf8 {[%clk 0:00:51.4]} 27... Bxf8 {[%clk 0:01:11.5]}
28. Ng5+ {[%clk 0:00:51.8]} 28... Kg7 {[%clk 0:01:09.1]} 29. Bxd5 {[%clk
0:00:51.9]} 29... hxg5 {[%clk 0:01:09.7]} 30. Bxb7 {[%clk 0:00:51.5]} 30... Nb6
{[%clk 0:01:06.3]} 31. b4 {[%clk 0:00:50]} 31... Kf6 {[%clk 0:01:04.4]} 32. b5
{[%clk 0:00:50.3]} 32... Ke6 {[%clk 0:01:03.1]} 33. Be4 {[%clk 0:00:49.4]} 33...
Bc5 {[%clk 0:00:53]} 34. Rc1 {[%clk 0:00:49.1]} 34... Kd6 {[%clk 0:00:50.1]} 35.
Kg2 {[%clk 0:00:48.8]} 35... Nd7 {[%clk 0:00:38.2]} 36. Bxg6 {[%clk 0:00:48.7]}
36... Kd5 {[%clk 0:00:32.5]} 37. Bf5 {[%clk 0:00:45.7]} 37... Nb6 {[%clk
0:00:30]} 38. Kf3 {[%clk 0:00:40.7]} 38... Na4 {[%clk 0:00:25.9]} 39. Rd1+
{[%clk 0:00:39.4]} 39... Bd4 {[%clk 0:00:25.8]} 40. Be4+ {[%clk 0:00:38.8]}
40... Kc5 {[%clk 0:00:24.6]} 41. Bc6 {[%clk 0:00:37.2]} 41... Nc3 {[%clk
0:00:23.9]} 42. Rc1 {[%clk 0:00:37.2]} 42... Kb6 {[%clk 0:00:23.3]} 43. Rc2
{[%clk 0:00:34.5]} 43... Ka5 {[%clk 0:00:22.5]} 44. Kg3 {[%clk 0:00:29.8]} 44...
Kb6 {[%clk 0:00:21.1]} 45. h4 {[%clk 0:00:30.1]} 45... gxh4+ {[%clk 0:00:20.5]}
46. Kxh4 {[%clk 0:00:30.1]} 46... Nd1 {[%clk 0:00:19.4]} 47. f3 {[%clk
0:00:28.3]} 47... Ne3 {[%clk 0:00:18.8]} 48. Re2 {[%clk 0:00:27.8]} 48... Nc4
{[%clk 0:00:17.2]} 49. g5 {[%clk 0:00:28]} 49... Nd6 {[%clk 0:00:16.1]} 50. g6
{[%clk 0:00:27.6]} 50... Kc5 {[%clk 0:00:15.8]} 51. Kg5 {[%clk 0:00:25.6]} 51...
e4 {[%clk 0:00:13]} 52. fxe4 {[%clk 0:00:23.5]} 52... Be5 {[%clk 0:00:12.9]} 53.
Rc2+ {[%clk 0:00:20.4]} 53... Kb6 {[%clk 0:00:12.7]} 54. Bd5 {[%clk 0:00:20.1]}
54... Kxb5 {[%clk 0:00:09.3]} 55. Rc6 {[%clk 0:00:20.7]} 55... Ne8 {[%clk
0:00:06.5]} 56. Re6 {[%clk 0:00:20.6]} 1-0

[Event "*** Titled Tuesday Blitz"]
[Site "Chess.com"]
[Date "2021.02.16"]
[Round "5"]
[White "GelmanAlexander"]
[Black "Dedic8"]
[Result "0-1"]
[WhiteElo "2606"]
[BlackElo "2830"]
[TimeControl "180+1"]
[EndTime "10:58:41 PST"]
[Termination "Dedic8 won on time"]

1. d4 {[%clk 0:03:00.9]} 1... Nf6 {[%clk 0:03:00.3]} 2. Nc3 {[%clk 0:03:00.8]}
2... d5 {[%clk 0:02:59.8]} 3. Bf4 {[%clk 0:02:59.7]} 3... c5 {[%clk 0:03:00.1]}
4. e3 {[%clk 0:02:59.8]} 4... cxd4 {[%clk 0:02:59]} 5. exd4 {[%clk 0:02:59.9]}
5... Bg4 {[%clk 0:02:59]} 6. Qd2 {[%clk 0:02:50]} 6... Nc6 {[%clk 0:02:57.9]} 7.
Be2 {[%clk 0:02:18.4]} 7... Bxe2 {[%clk 0:02:56.2]} 8. Ngxe2 {[%clk 0:02:18.4]}
8... e6 {[%clk 0:02:55.9]} 9. Ng3 {[%clk 0:01:51.6]} 9... Bd6 {[%clk 0:02:37.8]}
10. Nce2 {[%clk 0:01:51.3]} 10... O-O {[%clk 0:02:36]} 11. O-O {[%clk
0:01:49.6]} 11... Ne4 {[%clk 0:02:23.5]} 12. Nxe4 {[%clk 0:01:49.4]} 12... dxe4
{[%clk 0:02:24.4]} 13. Rad1 {[%clk 0:01:42.1]} 13... Ne7 {[%clk 0:01:55.2]} 14.
c4 {[%clk 0:01:33.3]} 14... Rc8 {[%clk 0:01:51.1]} 15. b3 {[%clk 0:01:30]} 15...
f5 {[%clk 0:01:45.2]} 16. f3 {[%clk 0:01:23.7]} 16... exf3 {[%clk 0:01:42.7]}
17. Rxf3 {[%clk 0:01:23.5]} 17... Ng6 {[%clk 0:01:42.1]} 18. Bxd6 {[%clk
0:01:15.4]} 18... Qxd6 {[%clk 0:01:43]} 19. Qe3 {[%clk 0:01:06.4]} 19... e5
{[%clk 0:01:24.5]} 20. Qf2 {[%clk 0:00:35]} 20... Qd7 {[%clk 0:00:59.5]} 21. Rf1
{[%clk 0:00:26.4]} 21... exd4 {[%clk 0:00:35]} 22. Qxd4 {[%clk 0:00:24.9]} 22...
Qe6 {[%clk 0:00:30.3]} 23. Nf4 {[%clk 0:00:20.3]} 23... Nxf4 {[%clk 0:00:30.1]}
24. Qxf4 {[%clk 0:00:21.1]} 24... Rcd8 {[%clk 0:00:25.1]} 25. g4 {[%clk
0:00:17.8]} 25... g6 {[%clk 0:00:21.4]} 26. gxf5 {[%clk 0:00:13.6]} 26... Rxf5
{[%clk 0:00:17.2]} 27. Qg4 {[%clk 0:00:13.7]} 27... Re5 {[%clk 0:00:09.8]} 28.
Qxe6+ {[%clk 0:00:10.3]} 28... Rxe6 {[%clk 0:00:10.7]} 29. Rf7 {[%clk
0:00:10.9]} 29... Rd2 {[%clk 0:00:10.7]} 30. Rf8+ {[%clk 0:00:09.7]} 30... Kg7
{[%clk 0:00:10.6]} 31. R8f7+ {[%clk 0:00:10.6]} 31... Kh6 {[%clk 0:00:10.6]} 32.
R7f2 {[%clk 0:00:11.5]} 32... Ree2 {[%clk 0:00:10.1]} 33. Kg2 {[%clk 0:00:12]}
33... Rxa2 {[%clk 0:00:09.7]} 34. Rxe2 {[%clk 0:00:11.6]} 34... Rxe2+ {[%clk
0:00:10.6]} 35. Kg3 {[%clk 0:00:12.5]} 35... Rb2 {[%clk 0:00:10.7]} 36. Rf3
{[%clk 0:00:12.8]} 36... a5 {[%clk 0:00:10.7]} 37. h4 {[%clk 0:00:13]} 37... Kh5
{[%clk 0:00:08.3]} 38. Rd3 {[%clk 0:00:12.7]} 38... h6 {[%clk 0:00:06.6]} 39.
Rd5+ {[%clk 0:00:12.8]} 39... g5 {[%clk 0:00:07.2]} 40. Rb5 {[%clk 0:00:10.3]}
40... Rc2 {[%clk 0:00:06.5]} 41. hxg5 {[%clk 0:00:10.4]} 41... hxg5 {[%clk
0:00:07]} 42. Rxb7 {[%clk 0:00:10.5]} 42... a4 {[%clk 0:00:07.4]} 43. bxa4
{[%clk 0:00:07.7]} 43... Rxc4 {[%clk 0:00:07.6]} 44. a5 {[%clk 0:00:07.7]} 44...
Rc3+ {[%clk 0:00:07.9]} 45. Kf2 {[%clk 0:00:07.7]} 45... Ra3 {[%clk 0:00:08.8]}
46. Rb5 {[%clk 0:00:03.9]} 46... Kh4 {[%clk 0:00:08.2]} 47. Kg2 {[%clk
0:00:01.1]} 47... Ra2+ {[%clk 0:00:06.8]} 48. Kf3 {[%clk 0:00:01.4]} 48... g4+
{[%clk 0:00:06.7]} 49. Kf4 {[%clk 0:00:01.9]} 49... g3 {[%clk 0:00:06.9]} 0-1

[Event "*** Titled Tuesday Blitz"]
[Site "Chess.com"]
[Date "2021.02.16"]
[Round "5"]
[White "IAgrest"]
[Black "karenzadita"]
[Result "1-0"]
[WhiteElo "2317"]
[BlackElo "2400"]
[TimeControl "180+1"]
[EndTime "10:58:45 PST"]
[Termination "IAgrest won by resignation"]

1. e4 {[%clk 0:03:00.9]} 1... c5 {[%clk 0:02:59.8]} 2. Nf3 {[%clk 0:03:00.7]}
2... g6 {[%clk 0:03:00.1]} 3. d4 {[%clk 0:03:01.2]} 3... cxd4 {[%clk 0:03:00.7]}
4. Nxd4 {[%clk 0:03:02.1]} 4... Nc6 {[%clk 0:03:00.5]} 5. Nc3 {[%clk 0:03:02.3]}
5... Bg7 {[%clk 0:02:59.6]} 6. Be3 {[%clk 0:03:02.6]} 6... Nf6 {[%clk
0:02:59.2]} 7. Bc4 {[%clk 0:03:02.2]} 7... O-O {[%clk 0:02:57.8]} 8. Bb3 {[%clk
0:03:01.8]} 8... d6 {[%clk 0:02:33.7]} 9. h3 {[%clk 0:02:58.9]} 9... Bd7 {[%clk
0:02:27.8]} 10. O-O {[%clk 0:02:58]} 10... Nxd4 {[%clk 0:02:23]} 11. Bxd4 {[%clk
0:02:57.7]} 11... Bc6 {[%clk 0:02:23.6]} 12. Qd3 {[%clk 0:02:51.6]} 12... a6
{[%clk 0:02:15.5]} 13. Rad1 {[%clk 0:02:50.8]} 13... Qc7 {[%clk 0:02:11.3]} 14.
f4 {[%clk 0:02:42.8]} 14... Nd7 {[%clk 0:01:47.4]} 15. Bxg7 {[%clk 0:02:33.5]}
15... Kxg7 {[%clk 0:01:48.3]} 16. Qd4+ {[%clk 0:02:26.5]} 16... f6 {[%clk
0:01:48.2]} 17. Bd5 {[%clk 0:02:16.9]} 17... Qb6 {[%clk 0:01:41.9]} 18. Qxb6
{[%clk 0:02:11.5]} 18... Nxb6 {[%clk 0:01:42.8]} 19. b3 {[%clk 0:02:11]} 19...
Rac8 {[%clk 0:01:31.5]} 20. Rf3 {[%clk 0:01:39.7]} 20... Nxd5 {[%clk 0:00:44.5]}
21. exd5 {[%clk 0:01:37.1]} 21... Bd7 {[%clk 0:00:44.6]} 22. Re1 {[%clk
0:01:30.4]} 22... Kf7 {[%clk 0:00:43]} 23. Rfe3 {[%clk 0:01:28.4]} 23... Rfe8
{[%clk 0:00:43.1]} 24. R1e2 {[%clk 0:01:24.7]} 24... b5 {[%clk 0:00:39.7]} 25.
a4 {[%clk 0:01:13.7]} 25... b4 {[%clk 0:00:37.6]} 26. Na2 {[%clk 0:01:06.4]}
26... a5 {[%clk 0:00:36.4]} 27. c4 {[%clk 0:01:04]} 27... bxc3 {[%clk
0:00:34.3]} 28. Nxc3 {[%clk 0:01:01.7]} 28... Rc5 {[%clk 0:00:30.4]} 29. Kf2
{[%clk 0:00:56.9]} 29... h5 {[%clk 0:00:25.2]} 30. Kf3 {[%clk 0:00:51.5]} 30...
Bc8 {[%clk 0:00:24.5]} 31. g4 {[%clk 0:00:42.4]} 31... hxg4+ {[%clk 0:00:20.6]}
32. hxg4 {[%clk 0:00:43.3]} 32... Bb7 {[%clk 0:00:20.3]} 33. Rh2 {[%clk
0:00:32.9]} 33... Kg7 {[%clk 0:00:18.2]} 34. Rhe2 {[%clk 0:00:28.4]} 34... Kf7
{[%clk 0:00:17.6]} 35. Rh2 {[%clk 0:00:28.2]} 35... Bxd5+ {[%clk 0:00:13.9]} 36.
Nxd5 {[%clk 0:00:27.4]} 36... Rxd5 {[%clk 0:00:14.8]} 37. Rh7+ {[%clk
0:00:25.9]} 37... Kg8 {[%clk 0:00:15.3]} 38. Rhxe7 {[%clk 0:00:25]} 38... Rxe7
{[%clk 0:00:15.2]} 39. Rxe7 {[%clk 0:00:25.9]} 39... Rd3+ {[%clk 0:00:10.2]} 40.
Ke4 {[%clk 0:00:21.9]} 40... Rxb3 {[%clk 0:00:09.6]} 41. Re6 {[%clk 0:00:18.9]}
41... Kf7 {[%clk 0:00:07.8]} 42. Rxd6 {[%clk 0:00:18.7]} 42... Rb4+ {[%clk
0:00:08.7]} 43. Rd4 {[%clk 0:00:18.3]} 43... f5+ {[%clk 0:00:07.7]} 44. gxf5
{[%clk 0:00:16.8]} 44... gxf5+ {[%clk 0:00:08.6]} 45. Ke5 {[%clk 0:00:16]} 45...
Kg6 {[%clk 0:00:05.2]} 46. Rxb4 {[%clk 0:00:11.9]} 46... axb4 {[%clk 0:00:06.1]}
47. Kd4 {[%clk 0:00:12.3]} 47... Kh5 {[%clk 0:00:05.2]} 48. a5 {[%clk
0:00:12.6]} 48... Kg4 {[%clk 0:00:06.1]} 49. a6 {[%clk 0:00:12.9]} 49... Kxf4
{[%clk 0:00:06]} 50. a7 {[%clk 0:00:13.2]} 50... Kg3 {[%clk 0:00:06.9]} 51. a8=Q
{[%clk 0:00:13.3]} 51... f4 {[%clk 0:00:07.8]} 52. Qg8+ {[%clk 0:00:12.5]} 52...
Kf2 {[%clk 0:00:07.6]} 53. Ke4 {[%clk 0:00:11.9]} 53... f3 {[%clk 0:00:08.5]}
54. Qf7 {[%clk 0:00:11.9]} 1-0

[Event "*** Titled Tuesday Blitz"]
[Site "Chess.com"]
[Date "2021.02.16"]
[Round "5"]
[White "Spalir"]
[Black "GigaQuparadze"]
[Result "1-0"]
[WhiteElo "2676"]
[BlackElo "2926"]
[TimeControl "180+1"]
[EndTime "10:58:46 PST"]
[Termination "Spalir won by resignation"]

1. e4 {[%clk 0:03:00.9]} 1... c5 {[%clk 0:03:00]} 2. Nf3 {[%clk 0:03:00.6]} 2...
e6 {[%clk 0:03:00.1]} 3. d4 {[%clk 0:02:59.8]} 3... cxd4 {[%clk 0:03:01]} 4.
Nxd4 {[%clk 0:03:00.3]} 4... a6 {[%clk 0:03:01]} 5. c4 {[%clk 0:02:58.6]} 5...
Nf6 {[%clk 0:03:00.1]} 6. Nc3 {[%clk 0:02:57.7]} 6... Bb4 {[%clk 0:03:00.1]} 7.
Qd3 {[%clk 0:02:56.3]} 7... Qc7 {[%clk 0:03:00.4]} 8. Be2 {[%clk 0:02:49]} 8...
d6 {[%clk 0:02:58.9]} 9. O-O {[%clk 0:02:42.1]} 9... Nbd7 {[%clk 0:02:58.2]} 10.
a3 {[%clk 0:02:38]} 10... Bxc3 {[%clk 0:02:56.2]} 11. Qxc3 {[%clk 0:02:38.2]}
11... Nxe4 {[%clk 0:02:41.1]} 12. Qe3 {[%clk 0:02:27.1]} 12... Ndf6 {[%clk
0:02:33.2]} 13. b4 {[%clk 0:02:23.1]} 13... e5 {[%clk 0:02:24.2]} 14. Nb3 {[%clk
0:02:20.8]} 14... d5 {[%clk 0:02:23.6]} 15. cxd5 {[%clk 0:02:17.8]} 15... O-O
{[%clk 0:02:21.8]} 16. Bb2 {[%clk 0:02:14.4]} 16... Bf5 {[%clk 0:02:20.7]} 17.
Rfd1 {[%clk 0:02:10.4]} 17... Rad8 {[%clk 0:02:00.4]} 18. Rac1 {[%clk
0:02:07.6]} 18... Qe7 {[%clk 0:01:54]} 19. f3 {[%clk 0:01:35.5]} 19... Nd6
{[%clk 0:01:53.8]} 20. Qxe5 {[%clk 0:01:30.9]} 20... Qxe5 {[%clk 0:01:53.1]} 21.
Bxe5 {[%clk 0:01:31.8]} 21... Rfe8 {[%clk 0:01:53.6]} 22. Bxf6 {[%clk
0:01:31.1]} 22... gxf6 {[%clk 0:01:54.5]} 23. Kf2 {[%clk 0:01:28.4]} 23... Bd7
{[%clk 0:01:48.7]} 24. Nc5 {[%clk 0:01:27]} 24... Bb5 {[%clk 0:01:48.9]} 25.
Bxb5 {[%clk 0:01:25.8]} 25... axb5 {[%clk 0:01:49.8]} 26. Re1 {[%clk 0:01:19.4]}
26... Kg7 {[%clk 0:01:43.4]} 27. Rxe8 {[%clk 0:01:14.3]} 27... Rxe8 {[%clk
0:01:44.3]} 28. Re1 {[%clk 0:01:14.6]} 28... Ra8 {[%clk 0:01:43.9]} 29. Re7
{[%clk 0:01:11.7]} 29... Rxa3 {[%clk 0:01:42.9]} 30. Rd7 {[%clk 0:01:11.8]}
30... Nf5 {[%clk 0:01:33]} 31. Ne6+ {[%clk 0:00:52.5]} 31... Kg6 {[%clk
0:01:33]} 32. Nf4+ {[%clk 0:00:52.2]} 32... Kg5 {[%clk 0:01:30.7]} 33. Ne2
{[%clk 0:00:51.4]} 33... Kg6 {[%clk 0:01:06.2]} 34. Rxb7 {[%clk 0:00:49.5]}
34... Ra2 {[%clk 0:01:05]} 35. f4 {[%clk 0:00:43.9]} 35... Rd2 {[%clk
0:00:47.3]} 36. g4 {[%clk 0:00:42.4]} 36... Nd6 {[%clk 0:00:40.9]} 37. Rb8
{[%clk 0:00:28]} 37... f5 {[%clk 0:00:37.9]} 38. Rg8+ {[%clk 0:00:24.3]} 38...
Kf6 {[%clk 0:00:37.9]} 39. g5+ {[%clk 0:00:24.7]} 39... Ke7 {[%clk 0:00:38.2]}
40. Ke3 {[%clk 0:00:24.9]} 40... Nc4+ {[%clk 0:00:37.7]} 41. Kf3 {[%clk
0:00:25]} 41... Rxd5 {[%clk 0:00:37.4]} 42. Rb8 {[%clk 0:00:23.8]} 42... Rd3+
{[%clk 0:00:36]} 43. Kf2 {[%clk 0:00:24.3]} 43... Nd6 {[%clk 0:00:36]} 44. Ng3
{[%clk 0:00:21.6]} 44... Rb3 {[%clk 0:00:34.1]} 45. Ra8 {[%clk 0:00:20.3]} 45...
Rxb4 {[%clk 0:00:33.4]} 46. Ra7+ {[%clk 0:00:20.9]} 46... Ke6 {[%clk 0:00:33.8]}
47. Ke3 {[%clk 0:00:20.9]} 47... Rb3+ {[%clk 0:00:33.4]} 48. Kd4 {[%clk
0:00:21.3]} 48... Rf3 {[%clk 0:00:31.9]} 49. Nh5 {[%clk 0:00:20.2]} 49... Ne4
{[%clk 0:00:25.7]} 50. Ng7+ {[%clk 0:00:18.5]} 50... Kd6 {[%clk 0:00:25.8]} 51.
Nxf5+ {[%clk 0:00:18.3]} 51... Kc6 {[%clk 0:00:23.8]} 52. Kxe4 {[%clk
0:00:19.2]} 52... Rf2 {[%clk 0:00:24.3]} 53. Nd4+ {[%clk 0:00:19.2]} 53... Kc5
{[%clk 0:00:24.6]} 54. Rc7+ {[%clk 0:00:19.3]} 54... Kd6 {[%clk 0:00:24.4]} 55.
Rc6+ {[%clk 0:00:19.5]} 55... Kd7 {[%clk 0:00:24.4]} 56. Rf6 {[%clk 0:00:19.8]}
56... b4 {[%clk 0:00:24.4]} 57. Rxf7+ {[%clk 0:00:19.7]} 57... Kd6 {[%clk
0:00:25]} 58. Rxh7 {[%clk 0:00:20.6]} 58... Kc5 {[%clk 0:00:25.5]} 59. Rc7+
{[%clk 0:00:20.4]} 59... Kd6 {[%clk 0:00:25.8]} 60. Rc6+ {[%clk 0:00:20.8]}
60... Kd7 {[%clk 0:00:26.2]} 61. Rb6 {[%clk 0:00:21.7]} 61... Rxh2 {[%clk
0:00:25.3]} 62. Rxb4 {[%clk 0:00:21.4]} 62... Kd6 {[%clk 0:00:26.2]} 63. Rb6+
{[%clk 0:00:21.5]} 63... Kc7 {[%clk 0:00:26.5]} 64. Ra6 {[%clk 0:00:22.4]} 64...
Kd7 {[%clk 0:00:27.4]} 65. Kf5 {[%clk 0:00:22.7]} 65... Rd2 {[%clk 0:00:26.8]}
66. Ne6 {[%clk 0:00:22.6]} 1-0

[Event "*** Titled Tuesday Blitz"]
[Site "Chess.com"]
[Date "2021.02.16"]
[Round "5"]
[White "monalize"]
[Black "eldur16"]
[Result "1-0"]
[WhiteElo "2374"]
[BlackElo "2504"]
[TimeControl "180+1"]
[EndTime "10:58:47 PST"]
[Termination "monalize won on time"]

1. e4 {[%clk 0:02:59.9]} 1... Nf6 {[%clk 0:02:58.6]} 2. e5 {[%clk 0:02:57.5]}
2... Nd5 {[%clk 0:02:58.7]} 3. d4 {[%clk 0:02:57.4]} 3... d6 {[%clk 0:02:58.8]}
4. Nf3 {[%clk 0:02:56.1]} 4... Bg4 {[%clk 0:02:58.4]} 5. h3 {[%clk 0:02:55.1]}
5... Bh5 {[%clk 0:02:57.4]} 6. e6 {[%clk 0:02:36]} 6... fxe6 {[%clk 0:02:49.8]}
7. g4 {[%clk 0:02:35.7]} 7... Bf7 {[%clk 0:02:38.2]} 8. Ng5 {[%clk 0:02:33.4]}
8... Nc6 {[%clk 0:02:34]} 9. c4 {[%clk 0:02:26.8]} 9... Nb6 {[%clk 0:02:12.1]}
10. Nc3 {[%clk 0:02:24.9]} 10... Bg8 {[%clk 0:02:09.4]} 11. d5 {[%clk
0:02:12.2]} 11... exd5 {[%clk 0:01:55.9]} 12. cxd5 {[%clk 0:02:10.7]} 12... Ne5
{[%clk 0:01:24.9]} 13. f4 {[%clk 0:02:07.5]} 13... Ng6 {[%clk 0:01:21.5]} 14.
Bb5+ {[%clk 0:01:58]} 14... c6 {[%clk 0:01:19.9]} 15. dxc6 {[%clk 0:01:55.5]}
15... bxc6 {[%clk 0:01:16.9]} 16. Bxc6+ {[%clk 0:01:54]} 16... Nd7 {[%clk
0:01:16.5]} 17. Bxa8 {[%clk 0:01:47.4]} 17... Qxa8 {[%clk 0:01:15.7]} 18. Qf3
{[%clk 0:01:47.1]} 18... Qxf3 {[%clk 0:01:02]} 19. Nxf3 {[%clk 0:01:45.6]} 19...
Nc5 {[%clk 0:01:01.1]} 20. f5 {[%clk 0:01:35.7]} 20... Nf4 {[%clk 0:00:49.5]}
21. Bxf4 {[%clk 0:01:32.1]} 21... Nd3+ {[%clk 0:00:49.5]} 22. Kd2 {[%clk
0:01:31]} 22... Nxf4 {[%clk 0:00:49.4]} 23. Rae1 {[%clk 0:01:26.6]} 23... Kd7
{[%clk 0:00:42.4]} 24. Re4 {[%clk 0:01:20.4]} 24... Nd5 {[%clk 0:00:41.5]} 25.
Ra4 {[%clk 0:01:18.8]} 25... g6 {[%clk 0:00:33.6]} 26. Rxa7+ {[%clk 0:01:17.2]}
26... Kc6 {[%clk 0:00:32.3]} 27. Ra8 {[%clk 0:01:03.2]} 27... Bf7 {[%clk
0:00:21.1]} 28. Kc2 {[%clk 0:00:56.6]} 28... Nc7 {[%clk 0:00:16.5]} 29. Rd8
{[%clk 0:00:52.5]} 29... gxf5 {[%clk 0:00:16]} 30. Nd4+ {[%clk 0:00:51.5]} 30...
Kb7 {[%clk 0:00:14.9]} 31. Nxf5 {[%clk 0:00:48]} 31... Ne6 {[%clk 0:00:14]} 32.
Rd7+ {[%clk 0:00:45.1]} 32... Kc6 {[%clk 0:00:14.1]} 33. Ra7 {[%clk 0:00:43.5]}
33... Kb6 {[%clk 0:00:14.2]} 34. Ra3 {[%clk 0:00:42.1]} 34... Bg6 {[%clk
0:00:13.6]} 35. Re1 {[%clk 0:00:39.3]} 35... Nc5 {[%clk 0:00:13.2]} 36. Kd1
{[%clk 0:00:35.4]} 36... e6 {[%clk 0:00:12.6]} 37. Nd4 {[%clk 0:00:34.4]} 37...
Bf7 {[%clk 0:00:10.6]} 38. b4 {[%clk 0:00:32.9]} 38... Nd3 {[%clk 0:00:09.8]}
39. Rf1 {[%clk 0:00:32.8]} 39... Bg6 {[%clk 0:00:08]} 40. Nxe6 {[%clk
0:00:31.2]} 40... Nb2+ {[%clk 0:00:07.1]} 41. Ke2 {[%clk 0:00:29.6]} 41... Bd3+
{[%clk 0:00:05.6]} 42. Ke1 {[%clk 0:00:29.6]} 42... Bxf1 {[%clk 0:00:05.4]} 43.
Kxf1 {[%clk 0:00:29.8]} 43... Be7 {[%clk 0:00:05.3]} 44. Kg2 {[%clk 0:00:28.4]}
44... Kb7 {[%clk 0:00:03.6]} 45. Nd5 {[%clk 0:00:28.1]} 45... Bh4 {[%clk
0:00:03.2]} 46. Rc3 {[%clk 0:00:24.5]} 46... Re8 {[%clk 0:00:02.1]} 47. Ndf4
{[%clk 0:00:21.5]} 47... Bf6 {[%clk 0:00:01.1]} 48. Rc7+ {[%clk 0:00:21.1]}
48... Kb6 {[%clk 0:00:01.4]} 49. Rxh7 {[%clk 0:00:20]} 49... Be5 {[%clk
0:00:01.6]} 50. Nd5+ {[%clk 0:00:19.3]} 50... Kc6 {[%clk 0:00:01.5]} 51. Nef4
{[%clk 0:00:18.1]} 51... Kb5 {[%clk 0:00:01.1]} 52. h4 {[%clk 0:00:17.4]} 1-0

[Event "*** Titled Tuesday Blitz"]
[Site "Chess.com"]
[Date "2021.02.16"]
[Round "5"]
[White "paulrusan"]
[Black "ikhasu"]
[Result "1-0"]
[WhiteElo "2263"]
[BlackElo "2397"]
[TimeControl "180+1"]
[EndTime "10:58:47 PST"]
[Termination "paulrusan won on time"]

1. e4 {[%clk 0:03:00.6]} 1... e5 {[%clk 0:02:56.8]} 2. Nf3 {[%clk 0:02:59.9]}
2... Nf6 {[%clk 0:02:56]} 3. Nc3 {[%clk 0:02:58.8]} 3... Nc6 {[%clk 0:02:53.7]}
4. g3 {[%clk 0:02:58.5]} 4... d5 {[%clk 0:02:48.8]} 5. exd5 {[%clk 0:02:56.9]}
5... Nxd5 {[%clk 0:02:48.4]} 6. Bg2 {[%clk 0:02:57.4]} 6... Nxc3 {[%clk
0:02:45.1]} 7. bxc3 {[%clk 0:02:55.9]} 7... Be7 {[%clk 0:02:44.5]} 8. O-O {[%clk
0:02:51.9]} 8... O-O {[%clk 0:02:44.4]} 9. Re1 {[%clk 0:02:51.7]} 9... Bd6
{[%clk 0:02:40.6]} 10. d4 {[%clk 0:02:50.4]} 10... exd4 {[%clk 0:02:11.8]} 11.
cxd4 {[%clk 0:02:49.2]} 11... Bg4 {[%clk 0:02:11.5]} 12. c3 {[%clk 0:02:49.1]}
12... Re8 {[%clk 0:01:55.4]} 13. Rxe8+ {[%clk 0:02:42.1]} 13... Qxe8 {[%clk
0:01:55.1]} 14. Rb1 {[%clk 0:02:42.7]} 14... Na5 {[%clk 0:01:52.9]} 15. h3
{[%clk 0:02:21.3]} 15... Bf5 {[%clk 0:01:50.3]} 16. Rb2 {[%clk 0:02:17.5]} 16...
Qc8 {[%clk 0:01:27]} 17. g4 {[%clk 0:02:05.6]} 17... Be4 {[%clk 0:01:26.3]} 18.
Re2 {[%clk 0:02:03.1]} 18... Bd5 {[%clk 0:01:26.1]} 19. Ne5 {[%clk 0:01:48.5]}
19... Bxg2 {[%clk 0:01:24.8]} 20. Kxg2 {[%clk 0:01:48.3]} 20... Bxe5 {[%clk
0:01:24.2]} 21. Rxe5 {[%clk 0:01:47.6]} 21... Nc4 {[%clk 0:01:22.6]} 22. Re7
{[%clk 0:01:37.6]} 22... Qd8 {[%clk 0:01:18.1]} 23. Qe2 {[%clk 0:01:37.7]} 23...
Qd5+ {[%clk 0:01:16.3]} 24. Qe4 {[%clk 0:01:22.1]} 24... Qxe4+ {[%clk 0:01:14]}
25. Rxe4 {[%clk 0:01:22.3]} 25... Nb6 {[%clk 0:01:11.1]} 26. Re7 {[%clk
0:01:09.8]} 26... Rc8 {[%clk 0:01:09.8]} 27. Bd2 {[%clk 0:00:57.3]} 27... Kf8
{[%clk 0:01:06.5]} 28. Re1 {[%clk 0:00:54.8]} 28... Nc4 {[%clk 0:01:05]} 29. Bc1
{[%clk 0:00:54.5]} 29... Rd8 {[%clk 0:01:02.3]} 30. f4 {[%clk 0:00:53.9]} 30...
Rd5 {[%clk 0:01:00.6]} 31. Kf3 {[%clk 0:00:53.6]} 31... h5 {[%clk 0:00:53.4]}
32. f5 {[%clk 0:00:53.6]} 32... hxg4+ {[%clk 0:00:50.7]} 33. hxg4 {[%clk
0:00:53.9]} 33... f6 {[%clk 0:00:51]} 34. Bf4 {[%clk 0:00:51.1]} 34... c6 {[%clk
0:00:48.2]} 35. Rh1 {[%clk 0:00:45.6]} 35... Kg8 {[%clk 0:00:42.5]} 36. Re1
{[%clk 0:00:45.4]} 36... Kf7 {[%clk 0:00:42.4]} 37. Rh1 {[%clk 0:00:45.3]} 37...
Ra5 {[%clk 0:00:40.6]} 38. Rh8 {[%clk 0:00:44.5]} 38... Rxa2 {[%clk 0:00:39.9]}
39. Rc8 {[%clk 0:00:42.6]} 39... Rb2 {[%clk 0:00:33.9]} 40. Rc7+ {[%clk
0:00:42.5]} 40... Kf8 {[%clk 0:00:33.5]} 41. g5 {[%clk 0:00:42.6]} 41... fxg5
{[%clk 0:00:32.4]} 42. Bxg5 {[%clk 0:00:42.7]} 42... a5 {[%clk 0:00:31.9]} 43.
Kg4 {[%clk 0:00:39.9]} 43... Rg2+ {[%clk 0:00:30.7]} 44. Kh5 {[%clk 0:00:40]}
44... Rh2+ {[%clk 0:00:30]} 45. Kg6 {[%clk 0:00:40.1]} 45... Re2 {[%clk
0:00:10.8]} 46. Rf7+ {[%clk 0:00:37.2]} 46... Kg8 {[%clk 0:00:09.4]} 47. Rxg7+
{[%clk 0:00:37.2]} 47... Kf8 {[%clk 0:00:07.6]} 48. Rf7+ {[%clk 0:00:32.6]}
48... Ke8 {[%clk 0:00:06.6]} 49. Rxb7 {[%clk 0:00:32.4]} 49... Nd6 {[%clk
0:00:06]} 50. Rc7 {[%clk 0:00:26.4]} 50... Rg2 {[%clk 0:00:03.2]} 51. f6 {[%clk
0:00:15.4]} 51... Ne4 {[%clk 0:00:03.1]} 52. f7+ {[%clk 0:00:15.4]} 1-0